fUST/lending_fUST_20250521
["ID","MTS","AMOUNT","RATE_DAILY","PERIOD"]
[361780086,1747775443908,-430.0,0.00020273,2]
[361780087,1747775443917,-446.13,0.00020273,2]
[361780089,1747775443926,-513.86,0.00020273,2]
[361780091,1747775443935,-430.0,0.00020273,2]
[361780093,1747775443945,-471.13,0.00020273,2]
[361780095,1747775443954,-1047.38,0.00020273,2]
[361780097,1747775443964,-430.0,0.00020273,2]
[361780099,1747775443974,-430.0,0.00020273,2]
[361780101,1747775443984,-518.89,0.00020273,2]
[361780103,1747775443993,-430.0,0.00020273,2]
[361780105,1747775444003,-469.67,0.00020273,2]
[361780106,1747775444012,-803.42,0.00020273,2]
[361780108,1747775444022,-430.0,0.00020273,2]
[361780110,1747775444033,-877.67,0.00020273,2]
[361780112,1747775444043,-430.0,0.00020273,2]
[361780114,1747775444052,-453.94,0.00020273,2]
[361780116,1747775444062,-1865.77,0.00020273,2]
[361780117,1747775444072,-2263.91,0.00020273,2]
[361780119,1747775444081,-430.0,0.00020273,2]
[361780121,1747775444090,-430.0,0.00020273,2]
[361780123,1747775444100,-1962.0,0.00020273,2]
[361780125,1747775444110,-430.0,0.00020273,2]
[361780127,1747775444119,-526.49,0.00020273,2]
[361780129,1747775444128,-1558.65,0.00020273,2]
[361780131,1747775444137,-480.96,0.00020273,2]
[361780133,1747775444147,-596.99,0.00020273,2]
[361780135,1747775444156,-452.43,0.00020273,2]
[361780136,1747775444165,-543.73,0.00020273,2]
[361780138,1747775444175,-430.0,0.00020273,2]
[361780140,1747775444184,-669.88,0.00020273,2]
[361780142,1747775444193,-430.0,0.00020273,2]
[361780144,1747775444206,-430.0,0.00020273,2]
[361780146,1747775444215,-430.0,0.00020273,2]
[361780148,1747775444224,-483.74,0.00020273,2]
[361780150,1747775444233,-894.16,0.00020273,2]
[361780152,1747775444244,-998.6,0.00020273,2]
[361780154,1747775444253,-430.0,0.00020273,2]
[361780156,1747775444263,-459.9,0.00020273,2]
[361780158,1747775444273,-573.65,0.00020273,2]
[361780159,1747775444282,-4309.86131901,0.00020314,3]
[361780161,1747775444291,-170.0,0.0002034,2]
[361780163,1747775444300,-170.0,0.0002034,2]
[361780165,1747775444310,-268.1735464,0.0002053,2]
[361780167,1747775444319,-430.0,0.00020547,2]
[361780169,1747775444328,-446.13,0.00020547,2]
[361780171,1747775444337,-430.0,0.00020547,2]
[361780173,1747775444346,-471.13,0.00020547,2]
[361780175,1747775444355,-1047.38,0.00020547,2]
[361780177,1747775444366,-441.86,0.00020547,2]
[361780179,1747775444375,-430.0,0.00020547,2]
[361780181,1747775444384,-518.89,0.00020547,2]
[361780182,1747775444394,-430.0,0.00020547,2]
[361780184,1747775444403,-469.67,0.00020547,2]
[361780186,1747775444413,-803.42,0.00020547,2]
[361780188,1747775444423,-430.0,0.00020547,2]
[361780190,1747775444432,-877.67,0.00020547,2]
[361780192,1747775444442,-430.0,0.00020547,2]
[361780194,1747775444452,-453.94,0.00020547,2]
[361780196,1747775444461,-1865.77,0.00020547,2]
[361780198,1747775444471,-2263.91,0.00020547,2]
[361780200,1747775444482,-430.0,0.00020547,2]
[361780202,1747775444492,-430.0,0.00020547,2]
[361780204,1747775444503,-1962.0,0.00020547,2]
[361780206,1747775444513,-430.0,0.00020547,2]
[361780208,1747775444523,-526.49,0.00020547,2]
[361780210,1747775444532,-1558.65,0.00020547,2]
[361780212,1747775444542,-480.96,0.00020547,2]
[361780214,1747775444552,-596.99,0.00020547,2]
[361780216,1747775444561,-452.43,0.00020547,2]
[361780218,1747775444572,-543.73,0.00020547,2]
[361780220,1747775444581,-229.79,0.00020547,2]
[361780222,1747775444591,-669.88,0.00020547,2]
[361780224,1747775444600,-430.0,0.00020547,2]
[361780226,1747775444610,-430.0,0.00020547,2]
[361780228,1747775444620,-430.0,0.00020547,2]
[361780230,1747775444630,-483.74,0.00020547,2]
[361780232,1747775444640,-894.16,0.00020547,2]
[361780233,1747775444650,-998.6,0.00020547,2]
[361780235,1747775444660,-430.0,0.00020547,2]
[361780237,1747775444670,-459.9,0.00020547,2]
[361780239,1747775444679,-573.65,0.00020547,2]
[361780241,1747775444689,-306.0,0.00020603,2]
[361780243,1747775444699,-158.0682864,0.00020603,2]
[361780245,1747775444708,-565.6372494,0.00020603,2]
[361780247,1747775444718,-151.0,0.00020624,2]
[361780249,1747775444728,-894.64583333,0.00020624,3]
[361780251,1747775444738,-8394.53822281,0.00020624,3]
[361780253,1747775444748,-212.38718278,0.00020624,3]
[361780255,1747775444758,-4309.86131901,0.00020624,3]
[361780257,1747775444769,-314.48519801,0.00020624,3]
[361780259,1747775444778,-151.19434921,0.0002069,2]
[361780261,1747775444788,-171.72037832,0.00020732,5]
[361780263,1747775444798,-156.56180132,0.00020732,5]
[361780265,1747775444807,-1800.0,0.00020752,2]
[361780266,1747775444817,-1500.0,0.00020808,2]
[361780268,1747775444826,-430.0,0.00020821,2]
[361780270,1747775444836,-446.13,0.00020821,2]
[361780272,1747775444846,-430.0,0.00020821,2]
[361780274,1747775444855,-471.13,0.00020821,2]
[361780276,1747775444864,-1047.38,0.00020821,2]
[361780278,1747775444874,-430.0,0.00020821,2]
[361780280,1747775444884,-518.89,0.00020821,2]
[361780282,1747775444894,-430.0,0.00020821,2]
[361780284,1747775444904,-469.67,0.00020821,2]
[361780286,1747775444915,-803.42,0.00020821,2]
[361780288,1747775444924,-194.17,0.00020821,2]
[361780290,1747775444934,-877.67,0.00020821,2]
[361780292,1747775444943,-430.0,0.00020821,2]
[361780294,1747775444953,-453.94,0.00020821,2]
[361780296,1747775444963,-1865.77,0.00020821,2]
[361780298,1747775444972,-2263.91,0.00020821,2]
[361780299,1747775444982,-324.64,0.00020821,2]
[361780301,1747775444991,-430.0,0.00020821,2]
[361780303,1747775445001,-1962.0,0.00020821,2]
[361780305,1747775445011,-430.0,0.00020821,2]
[361780307,1747775445021,-526.49,0.00020821,2]
[361780309,1747775445031,-1558.65,0.00020821,2]
[361780311,1747775445042,-480.96,0.00020821,2]
[361780313,1747775445051,-596.99,0.00020821,2]
[361780315,1747775445062,-452.43,0.00020821,2]
[361780317,1747775445072,-543.73,0.00020821,2]
[361780319,1747775445081,-669.88,0.00020821,2]
[361780321,1747775445091,-430.0,0.00020821,2]
[361780323,1747775445101,-430.0,0.00020821,2]
[361780325,1747775445111,-302.49,0.00020821,2]
[361780327,1747775445120,-483.74,0.00020821,2]
[361780329,1747775445130,-894.16,0.00020821,2]
[361780331,1747775445139,-998.6,0.00020821,2]
[361780333,1747775445148,-430.0,0.00020821,2]
[361780335,1747775445158,-459.9,0.00020821,2]
[361780337,1747775445168,-573.65,0.00020821,2]
[361780338,1747775445178,-363.3878261,0.00020877,2]
[361780340,1747775445187,-158.1192336,0.00020904,2]
[361780342,1747775445199,-569.8226027,0.00020904,2]
[361780344,1747775445210,-175.9907377,0.00020904,2]
[361780346,1747775445219,-175.9907377,0.00020904,2]
[361780348,1747775445228,-158.1192336,0.00020904,2]
[361780350,1747775445239,-569.8226027,0.00020904,2]
[361780352,1747775445250,-158.1192336,0.00020904,2]
[361780354,1747775445259,-175.9907377,0.00020904,2]
[361780356,1747775445269,-569.8226027,0.00020904,2]
[361780358,1747775445281,-175.9907377,0.00020904,2]
[361780360,1747775445291,-158.1192336,0.00020904,2]
[361780362,1747775445301,-569.8226027,0.00020904,2]
[361780364,1747775445311,-175.9907377,0.00020904,2]
[361780366,1747775445321,-4309.86131901,0.00020934,4]
[361780368,1747775445331,-482.121,0.0002104,2]
[361780370,1747775445344,-178.555,0.0002104,2]
[361780372,1747775445354,-151.0,0.00021095,2]
[361780374,1747775445365,-151.0,0.00021095,2]
[361780376,1747775445376,-430.0,0.00021095,2]
[361780378,1747775445387,-446.13,0.00021095,2]
[361780380,1747775445397,-430.0,0.00021095,2]
[361780382,1747775445407,-471.13,0.00021095,2]
[361780384,1747775445417,-1047.38,0.00021095,2]
[361780386,1747775445427,-430.0,0.00021095,2]
[361780388,1747775445437,-518.89,0.00021095,2]
[361780390,1747775445446,-430.0,0.00021095,2]
[361780392,1747775445456,-469.67,0.00021095,2]
[361780394,1747775445466,-803.42,0.00021095,2]
[361780396,1747775445476,-877.67,0.00021095,2]
[361780398,1747775445485,-430.0,0.00021095,2]
[361780400,1747775445494,-453.94,0.00021095,2]
[361780402,1747775445504,-1865.77,0.00021095,2]
[361780404,1747775445514,-2263.91,0.00021095,2]
[361780406,1747775445523,-430.0,0.00021095,2]
[361780408,1747775445533,-1962.0,0.00021095,2]
[361780410,1747775445543,-430.0,0.00021095,2]
[361780412,1747775445552,-526.49,0.00021095,2]
[361780414,1747775445562,-1558.65,0.00021095,2]
[361780416,1747775445572,-480.96,0.00021095,2]
[361780418,1747775445582,-596.99,0.00021095,2]
[361780419,1747775445591,-452.43,0.00021095,2]
[361780421,1747775445600,-543.73,0.00021095,2]
[361780423,1747775445610,-669.88,0.00021095,2]
[361780425,1747775445620,-430.0,0.00021095,2]
[361780427,1747775445630,-430.0,0.00021095,2]
[361780429,1747775445639,-483.74,0.00021095,2]
[361780431,1747775445649,-894.16,0.00021095,2]
[361780433,1747775445658,-998.6,0.00021095,2]
[361780435,1747775445669,-543.19,0.00021095,2]
[361780437,1747775445679,-459.9,0.00021095,2]
[361780439,1747775445689,-573.65,0.00021095,2]
[361780441,1747775445698,-500.0,0.00021225,2]
[361780443,1747775445708,-4309.86131901,0.00021245,4]
[361780445,1747775445718,-2400.0,0.000213,2]
[361780447,1747775445728,-253.90233183,0.00021345,2]
[361780449,1747775445739,-2000.0,0.00021356,2]
[361780451,1747775445749,-430.0,0.00021369,2]
[361780453,1747775445759,-446.13,0.00021369,2]
[361780455,1747775445769,-430.0,0.00021369,2]
[361780457,1747775445779,-471.13,0.00021369,2]
[361780459,1747775445790,-1047.38,0.00021369,2]
[361780461,1747775445800,-430.0,0.00021369,2]
[361780463,1747775445809,-518.89,0.00021369,2]
[361780466,1747775445820,-430.0,0.00021369,2]
[361780468,1747775445831,-469.67,0.00021369,2]
[361780470,1747775445841,-803.42,0.00021369,2]
[361780471,1747775445851,-877.67,0.00021369,2]
[361780473,1747775445861,-175.98,0.00021369,2]
[361780475,1747775445871,-453.94,0.00021369,2]
[361780477,1747775445881,-1865.77,0.00021369,2]
[361780479,1747775445891,-2263.91,0.00021369,2]
[361780481,1747775445900,-430.0,0.00021369,2]
[361780483,1747775445910,-1962.0,0.00021369,2]
[361780485,1747775445919,-430.0,0.00021369,2]
[361780487,1747775445929,-526.49,0.00021369,2]
[361780489,1747775445938,-1558.65,0.00021369,2]
[361780491,1747775445951,-480.96,0.00021369,2]
[361780493,1747775445960,-596.99,0.00021369,2]
[361780495,1747775445970,-452.43,0.00021369,2]
[361780497,1747775445979,-543.73,0.00021369,2]
[361780499,1747775445988,-669.88,0.00021369,2]
[361780501,1747775445998,-417.74,0.00021369,2]
[361780503,1747775446007,-430.0,0.00021369,2]
[361780505,1747775446017,-483.74,0.00021369,2]
[361780507,1747775446026,-894.16,0.00021369,2]
[361780509,1747775446036,-998.6,0.00021369,2]
[361780511,1747775446046,-459.9,0.00021369,2]
[361780513,1747775446056,-573.65,0.00021369,2]
[361780515,1747775446065,-156.56180132,0.00021373,5]
[361780517,1747775446076,-569.6479192,0.00021425,2]
[361780519,1747775446086,-175.5620471,0.00021425,2]
[361780521,1747775446096,-547.0,0.00021442,2]
[361780523,1747775446106,-823.0,0.00021454,2]
[361780525,1747775446115,-151.0,0.00021511,2]
[361780527,1747775446125,-215.0738,0.00021511,2]
[361780529,1747775446134,-4309.86131901,0.00021555,5]
[361780531,1747775446144,-20000.0,0.000216,7]
[361780533,1747775446154,-894.64583333,0.000216,7]
[361780535,1747775446164,-160.0,0.000216,7]
[361780537,1747775446173,-314.48519801,0.000216,7]
[361780539,1747775446183,-151.0,0.00021643,2]
[361780541,1747775446195,-430.0,0.00021643,2]
[361780543,1747775446207,-446.13,0.00021643,2]
[361780545,1747775446217,-362.74,0.00021643,2]
[361780546,1747775446226,-471.13,0.00021643,2]
[361780548,1747775446236,-1047.38,0.00021643,2]
[361780550,1747775446247,-430.0,0.00021643,2]
[361780552,1747775446257,-518.89,0.00021643,2]
[361780554,1747775446266,-430.0,0.00021643,2]
[361780556,1747775446277,-469.67,0.00021643,2]
[361780558,1747775446287,-803.42,0.00021643,2]
[361780560,1747775446297,-877.67,0.00021643,2]
[361780562,1747775446307,-453.94,0.00021643,2]
[361780564,1747775446318,-1865.77,0.00021643,2]
[361780565,1747775446327,-2263.91,0.00021643,2]
[361780566,1747775446337,-430.0,0.00021643,2]
[361780567,1747775446347,-1962.0,0.00021643,2]
[361780568,1747775446357,-430.0,0.00021643,2]
[361780569,1747775446367,-526.49,0.00021643,2]
[361780570,1747775446377,-1558.65,0.00021643,2]
[361780571,1747775446387,-480.96,0.00021643,2]
[361780572,1747775446398,-596.99,0.00021643,2]
[361780573,1747775446407,-452.43,0.00021643,2]
[361780574,1747775446417,-543.73,0.00021643,2]
[361780575,1747775446427,-669.88,0.00021643,2]
[361780576,1747775446436,-208.4,0.00021643,2]
[361780577,1747775446446,-483.74,0.00021643,2]
[361780578,1747775446455,-894.16,0.00021643,2]
[361780579,1747775446464,-998.6,0.00021643,2]
[361780580,1747775446474,-459.9,0.00021643,2]
[361780581,1747775446485,-573.65,0.00021643,2]
[361780582,1747775446496,-174.5828222,0.00021726,2]
[361780583,1747775446507,-726.7756522,0.00021836,2]
[361780584,1747775446518,-3000.0,0.00021848,2]
[361780585,1747775446528,-4309.86131901,0.00021866,6]
[361780586,1747775446539,-2094.61818263,0.00021904,2]
[361780587,1747775446551,-151.0,0.00021917,2]
[361780588,1747775446563,-157.938608,0.00021917,2]
[361780589,1747775446572,-270.370646,0.00021917,2]
[361780590,1747775446582,-614.72276067,0.00021917,2]
[361780591,1747775446593,-270.370646,0.00021917,2]
[361780592,1747775446604,-502.8,0.00021917,2]
[361780593,1747775446615,-151.0,0.00021917,2]
[361780594,1747775446626,-446.13,0.00021917,2]
[361780595,1747775446636,-156.051776,0.00021917,2]
[361780596,1747775446646,-156.051776,0.00021917,2]
[361780597,1747775446656,-181.922324,0.00021917,2]
[361780598,1747775446666,-471.13,0.00021917,2]
[361780612,1747775446850,-1047.38,0.00021917,2]
[361780614,1747775446860,-3390.3,0.00021917,2]
[361780616,1747775446870,-352.80608057,0.00021917,2]
[361780618,1747775446880,-518.89,0.00021917,2]
[361780620,1747775446890,-197.672457,0.00021917,2]
[361780622,1747775446900,-197.672457,0.00021917,2]
[361780624,1747775446909,-412.34564788,0.00021917,2]
[361780626,1747775446919,-469.67,0.00021917,2]
[361780628,1747775446928,-803.42,0.00021917,2]
[361780630,1747775446937,-877.67,0.00021917,2]
[361780632,1747775446947,-453.94,0.00021917,2]
[361780633,1747775446958,-1865.77,0.00021917,2]
[361780635,1747775446971,-2263.91,0.00021917,2]
[361780637,1747775446981,-151.0,0.00021917,2]
[361780639,1747775446991,-351.74,0.00021917,2]
[361780641,1747775447000,-151.0,0.00021917,2]
[361780643,1747775447010,-1962.0,0.00021917,2]
[361780645,1747775447019,-430.0,0.00021917,2]
[361780647,1747775447029,-526.49,0.00021917,2]
[361780649,1747775447038,-151.0,0.00021917,2]
[361780651,1747775447047,-151.0,0.00021917,2]
[361780653,1747775447057,-1558.65,0.00021917,2]
[361780655,1747775447067,-480.96,0.00021917,2]
[361780657,1747775447076,-596.99,0.00021917,2]
[361780659,1747775447086,-452.43,0.00021917,2]
[361780661,1747775447095,-543.73,0.00021917,2]
[361780663,1747775447105,-669.88,0.00021917,2]
[361780665,1747775447115,-483.74,0.00021917,2]
[361780667,1747775447124,-894.16,0.00021917,2]
[361780669,1747775447136,-998.6,0.00021917,2]
[361780671,1747775447146,-459.9,0.00021917,2]
[361780673,1747775447155,-573.65,0.00021917,2]
[361780675,1747775447164,-160.0,0.00021972,2]
[361780677,1747775447174,-308.1626434,0.00021973,2]
[361780679,1747775447184,-141975.72997728,0.00021973,2]
[361780681,1747775447193,-151.0,0.00021973,7]
[361780682,1747775447207,-151.0,0.00021973,7]
[361780684,1747775447216,-151.0,0.00021973,7]
[361780686,1747775447226,-151.0,0.00021973,7]
[361780688,1747775447235,-162.052456,0.00021973,7]
[361780690,1747775447246,-162.052456,0.00021973,7]
[361780692,1747775447256,-236.353757,0.00021973,7]
[361780694,1747775447265,-236.353757,0.00021973,7]
[361780696,1747775447275,-151.0,0.00021973,7]
[361780698,1747775447285,-151.0,0.00021973,7]
[361780700,1747775447295,-493.636469,0.00021973,7]
[361780702,1747775447304,-493.636469,0.00021973,7]
[361780704,1747775447314,-151.0,0.00021973,7]
[361780706,1747775447324,-236.056377,0.00021973,7]
[361780708,1747775447333,-236.056377,0.00021973,7]
[361780710,1747775447343,-151.0,0.00021973,7]
[361780712,1747775447353,-151.0,0.00021973,7]
[361780714,1747775447363,-151.0,0.00021973,7]
[361780716,1747775447372,-151.0,0.00021973,7]
[361780718,1747775447384,-151.0,0.00021973,7]
[361780719,1747775447393,-151.0,0.00021973,7]
[361780721,1747775447406,-151.0,0.00021973,7]
[361780723,1747775447415,-215.049914,0.00021973,7]
[361780725,1747775447425,-151.0,0.00021973,7]
[361780727,1747775447434,-649.637505,0.00021973,7]
[361780729,1747775447443,-393.73669,0.00021973,7]
[361780731,1747775447453,-649.637505,0.00021973,7]
[361780733,1747775447462,-393.73669,0.00021973,7]
[361780735,1747775447472,-402.495642,0.00021973,7]
[361780737,1747775447482,-402.495642,0.00021973,7]
[361780739,1747775447492,-151.0,0.00021973,7]
[361780741,1747775447501,-151.0,0.00021973,7]
[361780743,1747775447511,-151.0,0.00021973,7]
[361780745,1747775447523,-170.0,0.00022,2]
[361780747,1747775447533,-436.0,0.00022,2]
[361780749,1747775447542,-171.04268386,0.00022034,5]
[361780751,1747775447552,-4309.86131901,0.00022176,6]
[361780753,1747775447561,-151.0,0.00022191,7]
[361780755,1747775447571,-151.0,0.00022191,7]
[361780757,1747775447582,-152.743483,0.00022191,7]
[361780759,1747775447592,-151.0,0.00022191,7]
[361780761,1747775447602,-151.0,0.00022191,7]
[361780763,1747775447611,-475.734946,0.00022191,7]
[361780765,1747775447621,-151.0,0.00022191,7]
[361780767,1747775447630,-151.0,0.00022191,7]
[361780768,1747775447644,-446.13,0.00022191,2]
[361780769,1747775447654,-471.13,0.00022191,2]
[361780770,1747775447663,-1047.38,0.00022191,2]
[361780771,1747775447673,-518.89,0.00022191,2]
[361780772,1747775447683,-469.67,0.00022191,2]
[361780773,1747775447692,-803.42,0.00022191,2]
[361780774,1747775447702,-877.67,0.00022191,2]
[361780775,1747775447711,-453.94,0.00022191,2]
[361780776,1747775447721,-1865.77,0.00022191,2]
[361780777,1747775447731,-2263.91,0.00022191,2]
[361780778,1747775447741,-1962.0,0.00022191,2]
[361780779,1747775447750,-419.15153098,0.00022191,2]
[361780780,1747775447760,-526.49,0.00022191,2]
[361780781,1747775447770,-1558.65,0.00022191,2]
[361780782,1747775447780,-480.96,0.00022191,2]
[361780783,1747775447790,-596.99,0.00022191,2]
[361780784,1747775447800,-452.43,0.00022191,2]
[361780785,1747775447810,-543.73,0.00022191,2]
[361780786,1747775447820,-669.88,0.00022191,2]
[361780787,1747775447829,-483.74,0.00022191,2]
[361780788,1747775447839,-894.16,0.00022191,2]
[361780789,1747775447848,-998.6,0.00022191,2]
[361780790,1747775447858,-459.9,0.00022191,2]
[361780791,1747775447868,-573.65,0.00022191,2]
[361780792,1747775447878,-436.0,0.00022192,7]
[361780793,1747775447891,-3600.0,0.00022396,2]
[361780794,1747775447901,-156.984175,0.00022438,2]
[361780795,1747775447910,-446.13,0.00022465,2]
[361780796,1747775447920,-471.13,0.00022465,2]
[361780797,1747775447929,-1047.38,0.00022465,2]
[361780798,1747775447939,-518.89,0.00022465,2]
[361780799,1747775447948,-469.67,0.00022465,2]
[361780800,1747775447958,-803.42,0.00022465,2]
[361780801,1747775447968,-877.67,0.00022465,2]
[361780802,1747775447977,-453.94,0.00022465,2]
[361780803,1747775447987,-1865.77,0.00022465,2]
[361780804,1747775447997,-2263.91,0.00022465,2]
[361780805,1747775448007,-1962.0,0.00022465,2]
[361780806,1747775448016,-526.49,0.00022465,2]
[361780807,1747775448026,-1558.65,0.00022465,2]
[361780808,1747775448036,-480.96,0.00022465,2]
[361780809,1747775448046,-596.99,0.00022465,2]
[361780810,1747775448056,-452.43,0.00022465,2]
[361780811,1747775448065,-543.73,0.00022465,2]
[361780812,1747775448075,-669.88,0.00022465,2]
[361780813,1747775448085,-483.74,0.00022465,2]
[361780814,1747775448095,-894.16,0.00022465,2]
[361780815,1747775448105,-998.6,0.00022465,2]
[361780816,1747775448115,-459.9,0.00022465,2]
[361780817,1747775448125,-573.65,0.00022465,2]
[361780818,1747775448137,-4309.86131901,0.00022486,7]
[361780819,1747775448147,-158.1192336,0.00022548,2]
[361780820,1747775448157,-569.8226027,0.00022548,2]
[361780821,1747775448167,-179.2456987,0.00022548,2]
[361780822,1747775448177,-569.8226027,0.00022548,2]
[361780823,1747775448187,-569.8226027,0.00022548,2]
[361780824,1747775448197,-569.8226027,0.00022548,2]
[361780825,1747775448210,-253.90233183,0.00022597,2]
[361780826,1747775448220,-30000.0,0.000226,7]
[361780827,1747775448230,-270.370646,0.000226,7]
[361780828,1747775448240,-270.370646,0.000226,7]
[361780829,1747775448251,-151.0,0.000226,7]
[361780830,1747775448261,-156.051776,0.000226,7]
[361780831,1747775448271,-156.051776,0.000226,7]
[361780832,1747775448282,-197.672457,0.000226,7]
[361780833,1747775448292,-197.672457,0.000226,7]
[361780834,1747775448301,-151.0,0.000226,7]
[361780835,1747775448311,-151.0,0.000226,7]
[361780836,1747775448321,-151.0,0.000226,7]
[361780837,1747775448331,-151.0,0.000226,7]
[361780838,1747775448340,-160.0,0.000226,7]
[361780839,1747775448350,-314.48519801,0.000226,7]
[361780840,1747775448360,-446.15,0.00022739,2]
[361780841,1747775448370,-471.13,0.00022739,2]
[361780842,1747775448379,-1047.51395413,0.00022739,2]
[361780843,1747775448390,-518.99439242,0.00022739,2]
[361780844,1747775448400,-469.84,0.00022739,2]
[361780845,1747775448409,-803.52,0.00022739,2]
[361780846,1747775448420,-877.80548891,0.00022739,2]
[361780848,1747775448429,-454.14,0.00022739,2]
[361780850,1747775448439,-1865.8667928,0.00022739,2]
[361780852,1747775448449,-2263.99,0.00022739,2]
[361780854,1747775448458,-1962.04418512,0.00022739,2]
[361780856,1747775448467,-526.59,0.00022739,2]
[361780858,1747775448477,-1558.79,0.00022739,2]
[361780860,1747775448488,-481.16,0.00022739,2]
[361780861,1747775448498,-597.11497222,0.00022739,2]
[361780862,1747775448509,-452.53781002,0.00022739,2]
[361780863,1747775448518,-543.95,0.00022739,2]
[361780864,1747775448528,-669.99,0.00022739,2]
[361780865,1747775448538,-483.74,0.00022739,2]
[361780866,1747775448548,-894.16992102,0.00022739,2]
[361780867,1747775448559,-998.62719358,0.00022739,2]
[361780868,1747775448568,-460.06,0.00022739,2]
[361780869,1747775448579,-4309.86131901,0.00022797,7]
[361780870,1747775448589,-151.0,0.00022865,7]
[361780872,1747775448599,-151.0,0.0002288,2]
[361780874,1747775448609,-223.0315306,0.0002288,2]
[361780875,1747775448619,-22910.03706198,0.00022898,3]
[361780877,1747775448630,-168106.1222454,0.00022898,2]
[361780879,1747775448641,-151.0,0.00022899,7]
[361780881,1747775448651,-151.0,0.00022899,7]
[361780883,1747775448661,-151.0,0.00022899,7]
[361780885,1747775448671,-649.637505,0.00022899,7]
[361780886,1747775448681,-393.73669,0.00022899,7]
[361780887,1747775448690,-649.637505,0.00022899,7]
[361780888,1747775448700,-393.73669,0.00022899,7]
[361780890,1747775448710,-151.0,0.00022899,7]
[361780892,1747775448720,-179.759942,0.00022899,7]
[361780893,1747775448730,-151.0,0.00022899,7]
[361780894,1747775448739,-500.0,0.000229,120]
[361780896,1747775448749,-500.0,0.000229,120]
[361780898,1747775448759,-500.0,0.000229,120]
[361780900,1747775448769,-500.0,0.000229,120]
[361780902,1747775448778,-500.0,0.000229,120]
[361780903,1747775448788,-500.0,0.000229,120]
[361780905,1747775448797,-500.0,0.000229,120]
[361780907,1747775448807,-500.0,0.000229,120]
[361780909,1747775448817,-500.0,0.000229,120]
[361780911,1747775448831,-500.0,0.000229,120]
[361780913,1747775448842,-500.0,0.000229,120]
[361780914,1747775448852,-500.0,0.000229,120]
[361780915,1747775448861,-500.0,0.000229,120]
[361780916,1747775448870,-500.0,0.000229,120]
[361780917,1747775448879,-500.0,0.000229,120]
[361780918,1747775448890,-500.0,0.000229,120]
[361780919,1747775448899,-500.0,0.000229,120]
[361780920,1747775448909,-500.0,0.000229,120]
[361780921,1747775448919,-500.0,0.000229,120]
[361780922,1747775448929,-500.0,0.000229,120]
[361780923,1747775448939,-500.0,0.000229,120]
[361780924,1747775448948,-500.0,0.000229,120]
[361780925,1747775448958,-500.0,0.000229,120]
[361780926,1747775448968,-500.0,0.000229,120]
[361780928,1747775448977,-500.0,0.000229,120]
[361780930,1747775448987,-500.0,0.000229,120]
[361780931,1747775448996,-500.0,0.000229,120]
[361780933,1747775449006,-500.0,0.000229,120]
[361780935,1747775449015,-500.0,0.000229,120]
[361780937,1747775449025,-500.0,0.000229,120]